[Event "Late-Titled-Tuesday-Blitz-May-14-2024"]
[Site "Chess.com"]
[Date "2024.05.14"]
[Round "5"]
[White "Malev212"]
[Black "ccccvhhhj"]
[Result "1-0"]
[WhiteElo "2619"]
[BlackElo "2460"]
[TimeControl "180+1"]
[EndTime "14:54:01 PDT"]
[Termination "Malev212 won by checkmate"]

1. e4 {[%clk 0:02:55.1]} 1... e6 {[%clk 0:03:00.1]} 2. d4 {[%clk 0:02:53.7]}
2... d5 {[%clk 0:03:01]} 3. Nc3 {[%clk 0:02:53.3]} 3... Bb4 {[%clk 0:03:00.8]}
4. e5 {[%clk 0:02:53.2]} 4... c5 {[%clk 0:03:01.1]} 5. Bd2 {[%clk 0:02:53.1]}
5... Ne7 {[%clk 0:03:00.7]} 6. Nb5 {[%clk 0:02:50.3]} 6... Bxd2+ {[%clk
0:03:01.6]} 7. Qxd2 {[%clk 0:02:49.4]} 7... O-O {[%clk 0:03:02.5]} 8. f4 {[%clk
0:02:47.1]} 8... cxd4 {[%clk 0:02:58.1]} 9. Nf3 {[%clk 0:02:45.8]} 9... Nbc6
{[%clk 0:02:58.4]} 10. Nbxd4 {[%clk 0:02:35.3]} 10... Nxd4 {[%clk 0:02:57.6]}
11. Qxd4 {[%clk 0:02:33]} 11... Bd7 {[%clk 0:02:58.5]} 12. Bd3 {[%clk
0:02:31.1]} 12... a6 {[%clk 0:02:51.6]} 13. a4 {[%clk 0:02:24.9]} 13... Nc6
{[%clk 0:02:44.7]} 14. Qe3 {[%clk 0:02:20.9]} 14... h6 {[%clk 0:02:34.3]} 15.
O-O {[%clk 0:02:20.1]} 15... Nb4 {[%clk 0:02:31.5]} 16. a5 {[%clk 0:02:05.4]}
16... Nxd3 {[%clk 0:02:30.6]} 17. cxd3 {[%clk 0:02:04.5]} 17... Rc8 {[%clk
0:02:28]} 18. Nd4 {[%clk 0:01:59.1]} 18... Bb5 {[%clk 0:02:19.9]} 19. f5 {[%clk
0:01:52.4]} 19... exf5 {[%clk 0:02:20]} 20. Rxf5 {[%clk 0:01:48.9]} 20... Bd7
{[%clk 0:02:08]} 21. Rf3 {[%clk 0:01:32.9]} 21... Qe7 {[%clk 0:01:50.6]} 22. Re1
{[%clk 0:01:11.3]} 22... Be6 {[%clk 0:01:49.2]} 23. Rg3 {[%clk 0:01:09.6]} 23...
Kh8 {[%clk 0:01:48.3]} 24. Rf1 {[%clk 0:00:58.1]} 24... Qb4 {[%clk 0:01:46.7]}
25. h4 {[%clk 0:00:48.5]} 25... Qxb2 {[%clk 0:01:42.2]} 26. Kh2 {[%clk
0:00:46.1]} 26... Qc3 {[%clk 0:01:21.3]} 27. Rf6 {[%clk 0:00:44.6]} 27... Kh7
{[%clk 0:01:16]} 28. Nxe6 {[%clk 0:00:41.7]} 28... fxe6 {[%clk 0:01:16.2]} 29.
Rxg7+ {[%clk 0:00:40.5]} 29... Kxg7 {[%clk 0:01:13.1]} 30. Qxh6+ {[%clk
0:00:39.7]} 30... Kg8 {[%clk 0:01:14]} 31. Qg5+ {[%clk 0:00:38.7]} 31... Kh7
{[%clk 0:01:13.9]} 32. Rh6# {[%clk 0:00:38.5]} 1-0

[Event "Late-Titled-Tuesday-Blitz-May-14-2024"]
[Site "Chess.com"]
[Date "2024.05.14"]
[Round "5"]
[White "Masterisback04"]
[Black "Arimin1329"]
[Result "1-0"]
[WhiteElo "2037"]
[BlackElo "2353"]
[TimeControl "180+1"]
[EndTime "14:54:05 PDT"]
[Termination "Masterisback04 won by resignation"]

1. e4 {[%clk 0:03:00.9]} 1... c6 {[%clk 0:02:54.4]} 2. d4 {[%clk 0:02:53.8]}
2... d5 {[%clk 0:02:55.3]} 3. Nd2 {[%clk 0:02:52]} 3... dxe4 {[%clk 0:02:54]} 4.
Nxe4 {[%clk 0:02:52.5]} 4... Bf5 {[%clk 0:02:54.8]} 5. Ng3 {[%clk 0:02:50.5]}
5... Bg6 {[%clk 0:02:55.7]} 6. Nf3 {[%clk 0:02:49]} 6... e6 {[%clk 0:02:54.8]}
7. Ne5 {[%clk 0:02:40]} 7... Nd7 {[%clk 0:02:55.2]} 8. Nxg6 {[%clk 0:02:37.1]}
8... hxg6 {[%clk 0:02:56.1]} 9. Be3 {[%clk 0:02:19.6]} 9... Qb6 {[%clk 0:02:54]}
10. Qc1 {[%clk 0:02:08.2]} 10... Ngf6 {[%clk 0:02:50.5]} 11. Bd3 {[%clk
0:01:28.6]} 11... Nd5 {[%clk 0:02:47]} 12. O-O {[%clk 0:01:27.9]} 12... N7f6
{[%clk 0:02:42.4]} 13. c4 {[%clk 0:01:25]} 13... Nxe3 {[%clk 0:02:41.1]} 14.
fxe3 {[%clk 0:01:25.9]} 14... Bd6 {[%clk 0:02:33.4]} 15. c5 {[%clk 0:01:25.5]}
15... Qc7 {[%clk 0:02:18.7]} 16. cxd6 {[%clk 0:01:25.5]} 16... Qxd6 {[%clk
0:02:19.6]} 17. Qc5 {[%clk 0:01:21.4]} 17... Qc7 {[%clk 0:02:19.1]} 18. Rf3
{[%clk 0:01:09.8]} 18... Ng4 {[%clk 0:02:16.5]} 19. h3 {[%clk 0:00:50.1]} 19...
Nf6 {[%clk 0:02:16.3]} 20. Raf1 {[%clk 0:00:31.1]} 20... g5 {[%clk 0:02:14.3]}
21. Ne4 {[%clk 0:00:24]} 21... g4 {[%clk 0:02:08.3]} 22. Nxf6+ {[%clk
0:00:21.7]} 22... gxf6 {[%clk 0:02:08.6]} 23. Rxf6 {[%clk 0:00:20.1]} 23... Rxh3
{[%clk 0:01:48.5]} 24. Qe5 {[%clk 0:00:10]} 24... Qxe5 {[%clk 0:01:48.3]} 25.
dxe5 {[%clk 0:00:10.9]} 25... Rxe3 {[%clk 0:01:48.3]} 26. Rxf7 {[%clk
0:00:10.7]} 26... O-O-O {[%clk 0:01:47.5]} 27. Bc4 {[%clk 0:00:09.8]} 27... Rxe5
{[%clk 0:01:46.5]} 28. Re7 {[%clk 0:00:09]} 28... Rd2 {[%clk 0:01:40.4]} 29.
Rf8+ {[%clk 0:00:07.7]} 29... Rd8 {[%clk 0:01:38.8]} 30. Bxe6+ {[%clk
0:00:07.8]} 30... Rxe6 {[%clk 0:01:37.7]} 31. Rxd8+ {[%clk 0:00:08.7]} 31...
Kxd8 {[%clk 0:01:38.1]} 32. Rxe6 {[%clk 0:00:09.3]} 1-0

[Event "Late-Titled-Tuesday-Blitz-May-14-2024"]
[Site "Chess.com"]
[Date "2024.05.14"]
[Round "5"]
[White "BardArtem"]
[Black "Balla_Tamas"]
[Result "0-1"]
[WhiteElo "2731"]
[BlackElo "2541"]
[TimeControl "180+1"]
[EndTime "14:54:13 PDT"]
[Termination "Balla_Tamas won by checkmate"]

1. e4 {[%clk 0:03:00.9]} 1... c5 {[%clk 0:03:00.3]} 2. c3 {[%clk 0:03:00.4]}
2... Nf6 {[%clk 0:03:00.3]} 3. e5 {[%clk 0:03:00.3]} 3... Nd5 {[%clk 0:03:01.1]}
4. Nf3 {[%clk 0:03:01.2]} 4... Nc6 {[%clk 0:03:01.2]} 5. Bc4 {[%clk 0:03:01.7]}
5... Nb6 {[%clk 0:02:57.7]} 6. Bb3 {[%clk 0:03:01.4]} 6... c4 {[%clk 0:02:55.5]}
7. Bc2 {[%clk 0:03:01.3]} 7... d6 {[%clk 0:02:55.3]} 8. exd6 {[%clk 0:03:02.2]}
8... Qxd6 {[%clk 0:02:54.4]} 9. O-O {[%clk 0:03:03.1]} 9... Bg4 {[%clk
0:02:54.3]} 10. h3 {[%clk 0:03:03.2]} 10... Bh5 {[%clk 0:02:54.3]} 11. b3 {[%clk
0:03:03.8]} 11... e6 {[%clk 0:02:52.4]} 12. Na3 {[%clk 0:03:03.4]} 12... cxb3
{[%clk 0:02:44.7]} 13. axb3 {[%clk 0:03:04.3]} 13... Be7 {[%clk 0:02:44]} 14.
Nc4 {[%clk 0:03:03.1]} 14... Nxc4 {[%clk 0:02:43]} 15. bxc4 {[%clk 0:03:04]}
15... O-O {[%clk 0:02:42.3]} 16. d4 {[%clk 0:03:03.6]} 16... Rac8 {[%clk
0:02:36.5]} 17. Re1 {[%clk 0:03:00.4]} 17... b6 {[%clk 0:02:35]} 18. Bd2 {[%clk
0:02:37.9]} 18... Qc7 {[%clk 0:02:34.6]} 19. d5 {[%clk 0:02:26]} 19... Na5
{[%clk 0:02:14.1]} 20. dxe6 {[%clk 0:02:01.4]} 20... Nxc4 {[%clk 0:02:13.9]} 21.
exf7+ {[%clk 0:01:00.7]} 21... Rxf7 {[%clk 0:02:14.8]} 22. Be4 {[%clk
0:01:01.4]} 22... Kh8 {[%clk 0:01:56.6]} 23. g4 {[%clk 0:00:20]} 23... Bg6
{[%clk 0:01:53.1]} 24. Bxg6 {[%clk 0:00:20.4]} 24... hxg6 {[%clk 0:01:54]} 25.
Qe2 {[%clk 0:00:10.9]} 25... Nxd2 {[%clk 0:01:49.5]} 26. Nxd2 {[%clk 0:00:09.5]}
26... Bc5 {[%clk 0:01:50.1]} 27. Ne4 {[%clk 0:00:09.8]} 27... Re8 {[%clk
0:01:48.8]} 28. Qd3 {[%clk 0:00:04.9]} 28... Rxe4 {[%clk 0:01:38.5]} 29. Rxe4
{[%clk 0:00:05.8]} 29... Rxf2 {[%clk 0:01:34.3]} 30. Kh1 {[%clk 0:00:06.4]}
30... Qh2# {[%clk 0:01:34]} 0-1

[Event "Late-Titled-Tuesday-Blitz-May-14-2024"]
[Site "Chess.com"]
[Date "2024.05.14"]
[Round "5"]
[White "NMJeevanK"]
[Black "PabloZarnicki"]
[Result "1-0"]
[WhiteElo "2728"]
[BlackElo "2555"]
[TimeControl "180+1"]
[EndTime "14:54:15 PDT"]
[Termination "NMJeevanK won on time"]

1. e4 {[%clk 0:03:00.9]} 1... e5 {[%clk 0:02:19.5]} 2. Nf3 {[%clk 0:02:58.3]}
2... Nf6 {[%clk 0:02:19.5]} 3. Nc3 {[%clk 0:02:56.7]} 3... Bb4 {[%clk
0:02:17.9]} 4. d3 {[%clk 0:02:49.2]} 4... d5 {[%clk 0:02:14.1]} 5. exd5 {[%clk
0:02:50.1]} 5... Nxd5 {[%clk 0:02:12.2]} 6. Bd2 {[%clk 0:02:50.7]} 6... O-O
{[%clk 0:02:11.6]} 7. Be2 {[%clk 0:02:49.3]} 7... Nc6 {[%clk 0:02:11.4]} 8. O-O
{[%clk 0:02:49.2]} 8... Bxc3 {[%clk 0:02:11.8]} 9. bxc3 {[%clk 0:02:49.3]} 9...
Qf6 {[%clk 0:02:12.4]} 10. Re1 {[%clk 0:02:45.3]} 10... Bf5 {[%clk 0:02:11.7]}
11. Rb1 {[%clk 0:02:42]} 11... b6 {[%clk 0:02:09.5]} 12. h3 {[%clk 0:02:41.3]}
12... e4 {[%clk 0:02:02.5]} 13. dxe4 {[%clk 0:02:25]} 13... Bxe4 {[%clk
0:02:03.4]} 14. Bd3 {[%clk 0:02:23.6]} 14... Bxf3 {[%clk 0:01:40.8]} 15. Qxf3
{[%clk 0:02:24.5]} 15... Qxf3 {[%clk 0:01:40.8]} 16. gxf3 {[%clk 0:02:25.4]}
16... Nde7 {[%clk 0:01:08.5]} 17. Bf4 {[%clk 0:02:23.3]} 17... Nd5 {[%clk
0:01:05.2]} 18. Bd2 {[%clk 0:02:19.6]} 18... Rfe8 {[%clk 0:01:00.7]} 19. Be4
{[%clk 0:01:59.4]} 19... Nde7 {[%clk 0:00:53.6]} 20. Bf4 {[%clk 0:01:53.7]}
20... Rac8 {[%clk 0:00:52.5]} 21. Rbd1 {[%clk 0:01:52.6]} 21... Na5 {[%clk
0:00:44.6]} 22. Rd7 {[%clk 0:01:46.1]} 22... Nec6 {[%clk 0:00:23.7]} 23. Bxc7
{[%clk 0:01:38.6]} 23... g6 {[%clk 0:00:14.4]} 24. Red1 {[%clk 0:01:36]} 24...
Ne5 {[%clk 0:00:06.9]} 25. Bxe5 {[%clk 0:01:31]} 25... Rxe5 {[%clk 0:00:07.8]}
26. Rxa7 {[%clk 0:01:31.4]} 26... Rxc3 {[%clk 0:00:06.7]} 27. Rd8+ {[%clk
0:01:26.5]} 27... Kg7 {[%clk 0:00:07]} 28. Rdd7 {[%clk 0:01:27.4]} 1-0

[Event "Late-Titled-Tuesday-Blitz-May-14-2024"]
[Site "Chess.com"]
[Date "2024.05.14"]
[Round "5"]
[White "balack95"]
[Black "CombativeWombat"]
[Result "1/2-1/2"]
[WhiteElo "2494"]
[BlackElo "2339"]
[TimeControl "180+1"]
[EndTime "14:54:17 PDT"]
[Termination "Game drawn by repetition"]

1. Nf3 {[%clk 0:03:00.9]} 1... d5 {[%clk 0:02:59.3]} 2. c4 {[%clk 0:03:00.5]}
2... e6 {[%clk 0:02:57.1]} 3. e3 {[%clk 0:02:57.4]} 3... c5 {[%clk 0:02:55.2]}
4. cxd5 {[%clk 0:02:55.8]} 4... exd5 {[%clk 0:02:56.1]} 5. d4 {[%clk 0:02:55.4]}
5... Nf6 {[%clk 0:02:52.8]} 6. Bb5+ {[%clk 0:02:52.5]} 6... Nc6 {[%clk
0:02:46.2]} 7. O-O {[%clk 0:02:51.4]} 7... cxd4 {[%clk 0:02:44.7]} 8. Nxd4
{[%clk 0:02:51.2]} 8... Bd7 {[%clk 0:02:44.8]} 9. Nc3 {[%clk 0:02:50.9]} 9...
Bd6 {[%clk 0:02:43.7]} 10. h3 {[%clk 0:02:50.4]} 10... O-O {[%clk 0:02:43.2]}
11. b3 {[%clk 0:02:34.1]} 11... Re8 {[%clk 0:02:33.2]} 12. Bb2 {[%clk
0:02:33.4]} 12... Nxd4 {[%clk 0:02:29.8]} 13. Bxd7 {[%clk 0:02:29]} 13... Qxd7
{[%clk 0:02:19.4]} 14. Qxd4 {[%clk 0:02:27.6]} 14... Be5 {[%clk 0:02:19.1]} 15.
Qd2 {[%clk 0:02:26.8]} 15... d4 {[%clk 0:02:01.5]} 16. exd4 {[%clk 0:02:19.2]}
16... Qxd4 {[%clk 0:02:00.1]} 17. Qxd4 {[%clk 0:02:09.4]} 17... Bxd4 {[%clk
0:02:00]} 18. Rad1 {[%clk 0:02:10]} 18... Rad8 {[%clk 0:01:53.3]} 19. Na4 {[%clk
0:02:04.2]} 19... Bxb2 {[%clk 0:01:51.8]} 20. Nxb2 {[%clk 0:02:05.1]} 20... g6
{[%clk 0:01:44.8]} 21. Nc4 {[%clk 0:02:01.2]} 21... Rxd1 {[%clk 0:01:23.7]} 22.
Rxd1 {[%clk 0:02:02.1]} 22... Re2 {[%clk 0:01:22.7]} 23. Rd2 {[%clk 0:01:58.6]}
23... Rxd2 {[%clk 0:01:14.6]} 24. Nxd2 {[%clk 0:01:59.5]} 24... Kf8 {[%clk
0:01:11.5]} 25. Kf1 {[%clk 0:01:59.9]} 25... Ke7 {[%clk 0:01:11.8]} 26. Ke2
{[%clk 0:02:00.8]} 26... Ke6 {[%clk 0:01:07.1]} 27. Nf3 {[%clk 0:01:53.5]} 27...
Ne4 {[%clk 0:01:03.6]} 28. Ke3 {[%clk 0:01:50.3]} 28... f5 {[%clk 0:00:57.5]}
29. Nd4+ {[%clk 0:01:48.7]} 29... Kd5 {[%clk 0:00:56.9]} 30. Nb5 {[%clk
0:01:45]} 30... a6 {[%clk 0:00:51.7]} 31. Nc7+ {[%clk 0:01:45.2]} 31... Kd6
{[%clk 0:00:32.4]} 32. Ne8+ {[%clk 0:01:45.2]} 32... Ke7 {[%clk 0:00:29.5]} 33.
Nc7 {[%clk 0:01:37.9]} 33... Kd6 {[%clk 0:00:29.9]} 34. Ne8+ {[%clk 0:01:24.5]}
34... Ke7 {[%clk 0:00:30.2]} 35. Nc7 {[%clk 0:01:12.8]} 35... Kd6 {[%clk
0:00:30.6]} 1/2-1/2

[Event "Late-Titled-Tuesday-Blitz-May-14-2024"]
[Site "Chess.com"]
[Date "2024.05.14"]
[Round "5"]
[White "Jarming"]
[Black "duone"]
[Result "1-0"]
[WhiteElo "2680"]
[BlackElo "2437"]
[TimeControl "180+1"]
[EndTime "14:54:22 PDT"]
[Termination "Jarming won by checkmate"]

1. e4 {[%clk 0:02:57.1]} 1... c5 {[%clk 0:02:58.3]} 2. Nf3 {[%clk 0:02:54.9]}
2... d6 {[%clk 0:02:57.6]} 3. d4 {[%clk 0:02:54.9]} 3... cxd4 {[%clk 0:02:58]}
4. Nxd4 {[%clk 0:02:54.6]} 4... Nf6 {[%clk 0:02:58.6]} 5. Nc3 {[%clk 0:02:54.6]}
5... a6 {[%clk 0:02:58.9]} 6. Qf3 {[%clk 0:02:54.2]} 6... e6 {[%clk 0:02:55.1]}
7. g4 {[%clk 0:02:53]} 7... Be7 {[%clk 0:02:49.8]} 8. g5 {[%clk 0:02:52.3]} 8...
Nfd7 {[%clk 0:02:49.8]} 9. h4 {[%clk 0:02:51.6]} 9... Nc6 {[%clk 0:02:47.5]} 10.
Be3 {[%clk 0:02:49.6]} 10... Qa5 {[%clk 0:02:35.6]} 11. Nb3 {[%clk 0:02:48.2]}
11... Qc7 {[%clk 0:02:35.2]} 12. h5 {[%clk 0:02:36.6]} 12... b5 {[%clk
0:02:27.9]} 13. g6 {[%clk 0:02:35.2]} 13... Nf6 {[%clk 0:02:02.7]} 14. gxf7+
{[%clk 0:02:33.7]} 14... Kxf7 {[%clk 0:02:03.3]} 15. Rg1 {[%clk 0:02:27.2]}
15... Bb7 {[%clk 0:02:01.5]} 16. Bd3 {[%clk 0:02:24.3]} 16... Ne5 {[%clk
0:01:58.3]} 17. Qh3 {[%clk 0:02:18.9]} 17... b4 {[%clk 0:01:52.5]} 18. Ne2
{[%clk 0:02:17.4]} 18... Nxe4 {[%clk 0:01:40.5]} 19. Nbd4 {[%clk 0:02:13.4]}
19... Nc5 {[%clk 0:01:22.5]} 20. Nf4 {[%clk 0:02:02.7]} 20... Bf6 {[%clk
0:01:12.9]} 21. Nfxe6 {[%clk 0:01:53]} 21... Nexd3+ {[%clk 0:00:33]} 22. cxd3
{[%clk 0:01:47.7]} 22... Qc8 {[%clk 0:00:31.7]} 23. Rc1 {[%clk 0:01:38.4]} 23...
Nxd3+ {[%clk 0:00:23.5]} 24. Kd2 {[%clk 0:01:37.9]} 24... Nxc1 {[%clk
0:00:22.6]} 25. Rxc1 {[%clk 0:01:38.8]} 25... Qe8 {[%clk 0:00:10.7]} 26. Rc7+
{[%clk 0:01:37.1]} 26... Kg8 {[%clk 0:00:10.4]} 27. Rxb7 {[%clk 0:01:37.1]}
27... Rc8 {[%clk 0:00:08.3]} 28. Qg4 {[%clk 0:01:35.6]} 28... g6 {[%clk
0:00:08.1]} 29. Qf4 {[%clk 0:01:29.3]} 29... Be5 {[%clk 0:00:06.6]} 30. Qh6
{[%clk 0:01:29.5]} 30... Bxd4 {[%clk 0:00:01.8]} 31. Bxd4 {[%clk 0:01:27.1]}
31... Qxe6 {[%clk 0:00:01.3]} 32. Qg7# {[%clk 0:01:26.7]} 1-0

[Event "Late-Titled-Tuesday-Blitz-May-14-2024"]
[Site "Chess.com"]
[Date "2024.05.14"]
[Round "5"]
[White "AlexeiShirov"]
[Black "Orest_Vovk"]
[Result "1-0"]
[WhiteElo "2923"]
[BlackElo "2691"]
[TimeControl "180+1"]
[EndTime "14:54:31 PDT"]
[Termination "AlexeiShirov won by resignation"]

1. e4 {[%clk 0:03:00.9]} 1... g5 {[%clk 0:02:57.5]} 2. d3 {[%clk 0:02:59.3]}
2... h6 {[%clk 0:02:47.2]} 3. Nc3 {[%clk 0:02:57.4]} 3... Bg7 {[%clk 0:02:46.6]}
4. h4 {[%clk 0:02:51.3]} 4... Bxc3+ {[%clk 0:02:36.5]} 5. bxc3 {[%clk
0:02:50.5]} 5... d5 {[%clk 0:02:36.6]} 6. hxg5 {[%clk 0:02:46.5]} 6... dxe4
{[%clk 0:02:35.6]} 7. gxh6 {[%clk 0:02:45.7]} 7... exd3 {[%clk 0:02:32.7]} 8.
Bxd3 {[%clk 0:02:43.1]} 8... Qd5 {[%clk 0:02:24.4]} 9. Qf3 {[%clk 0:02:38]} 9...
Qe5+ {[%clk 0:02:20.4]} 10. Ne2 {[%clk 0:02:35.2]} 10... Nf6 {[%clk 0:02:13.9]}
11. Bf4 {[%clk 0:02:31.7]} 11... Qa5 {[%clk 0:02:12.3]} 12. Qg3 {[%clk 0:02:24]}
12... Nh5 {[%clk 0:01:15.3]} 13. Rxh5 {[%clk 0:01:35.5]} 13... Qxh5 {[%clk
0:01:16.2]} 14. Qg7 {[%clk 0:01:34.7]} 14... Rf8 {[%clk 0:01:08.3]} 15. h7
{[%clk 0:01:33.3]} 15... Nd7 {[%clk 0:00:57.2]} 16. Bh6 {[%clk 0:01:31.6]} 16...
Qh1+ {[%clk 0:00:52.2]} 17. Kd2 {[%clk 0:01:30.7]} 17... Qxa1 {[%clk 0:00:50.8]}
18. h8=Q {[%clk 0:01:25.5]} 18... Qxa2 {[%clk 0:00:36]} 19. Bf5 {[%clk
0:01:18.4]} 19... Qd5+ {[%clk 0:00:28.3]} 20. Nd4 {[%clk 0:01:17.2]} 20... e6
{[%clk 0:00:15.5]} 21. Bxe6 {[%clk 0:01:08.9]} 21... fxe6 {[%clk 0:00:07.4]} 22.
Qg6+ {[%clk 0:01:07.7]} 22... Ke7 {[%clk 0:00:04.5]} 23. Bxf8+ {[%clk
0:01:06.3]} 23... Nxf8 {[%clk 0:00:04.2]} 24. Qgg7+ {[%clk 0:01:05.7]} 1-0

[Event "Late-Titled-Tuesday-Blitz-May-14-2024"]
[Site "Chess.com"]
[Date "2024.05.14"]
[Round "5"]
[White "VelandiaSaurio"]
[Black "emeli_chess"]
[Result "1-0"]
[WhiteElo "2627"]
[BlackElo "2419"]
[TimeControl "180+1"]
[EndTime "14:54:40 PDT"]
[Termination "VelandiaSaurio won by resignation"]

1. d4 {[%clk 0:02:59.9]} 1... Nf6 {[%clk 0:02:59.2]} 2. Nf3 {[%clk 0:02:59.6]}
2... d5 {[%clk 0:02:58.9]} 3. e3 {[%clk 0:02:59.9]} 3... c5 {[%clk 0:02:54.6]}
4. c3 {[%clk 0:02:59.8]} 4... e6 {[%clk 0:02:51.4]} 5. Nbd2 {[%clk 0:02:58.7]}
5... Nc6 {[%clk 0:02:50.6]} 6. Bd3 {[%clk 0:02:58.9]} 6... Bd6 {[%clk
0:02:50.3]} 7. O-O {[%clk 0:02:58.8]} 7... O-O {[%clk 0:02:50.4]} 8. dxc5 {[%clk
0:02:59.3]} 8... Bxc5 {[%clk 0:02:50.1]} 9. e4 {[%clk 0:03:00.2]} 9... dxe4
{[%clk 0:02:45.4]} 10. Nxe4 {[%clk 0:03:01.1]} 10... Nxe4 {[%clk 0:02:40.6]} 11.
Bxe4 {[%clk 0:03:02]} 11... Qxd1 {[%clk 0:02:40.3]} 12. Rxd1 {[%clk 0:03:02.9]}
12... Rd8 {[%clk 0:02:21.4]} 13. Bf4 {[%clk 0:03:02.8]} 13... Rxd1+ {[%clk
0:02:06.7]} 14. Rxd1 {[%clk 0:03:03.7]} 14... Kf8 {[%clk 0:02:01.8]} 15. Bxh7
{[%clk 0:03:02.8]} 15... g6 {[%clk 0:01:48.4]} 16. Bh6+ {[%clk 0:03:02.9]} 16...
Ke8 {[%clk 0:01:40.3]} 17. h4 {[%clk 0:03:03.8]} 17... Bd7 {[%clk 0:01:35.1]}
18. g4 {[%clk 0:02:53]} 18... Rd8 {[%clk 0:01:25.7]} 19. h5 {[%clk 0:02:51]}
19... gxh5 {[%clk 0:01:24.1]} 20. gxh5 {[%clk 0:02:51.9]} 20... Ke7 {[%clk
0:01:18.3]} 21. Be4 {[%clk 0:02:46.9]} 21... Rh8 {[%clk 0:01:14.2]} 22. Bg5+
{[%clk 0:02:42.7]} 22... f6 {[%clk 0:01:12.3]} 23. Bxf6+ {[%clk 0:02:43]} 23...
Kxf6 {[%clk 0:01:12.1]} 24. Rxd7 {[%clk 0:02:43]} 24... Rxh5 {[%clk 0:01:11.3]}
25. Rxb7 {[%clk 0:02:43.1]} 25... Ne5 {[%clk 0:01:08.5]} 26. b4 {[%clk
0:02:32.4]} 26... Bb6 {[%clk 0:00:58.9]} 27. a4 {[%clk 0:02:24.7]} 27... Ng4
{[%clk 0:00:56.3]} 28. Nd4 {[%clk 0:02:17.7]} 28... e5 {[%clk 0:00:46.9]} 29. a5
{[%clk 0:01:27.8]} 29... Bxa5 {[%clk 0:00:43.1]} 30. bxa5 {[%clk 0:01:26.7]}
30... exd4 {[%clk 0:00:43.5]} 31. Rxa7 {[%clk 0:01:18.9]} 31... dxc3 {[%clk
0:00:42.2]} 32. a6 {[%clk 0:01:13.6]} 32... Ra5 {[%clk 0:00:39.8]} 33. Ra8
{[%clk 0:01:13.9]} 33... Ke5 {[%clk 0:00:37.8]} 34. Bc2 {[%clk 0:01:06.6]} 34...
Ra2 {[%clk 0:00:36.8]} 35. a7 {[%clk 0:01:03.5]} 1-0

[Event "Late-Titled-Tuesday-Blitz-May-14-2024"]
[Site "Chess.com"]
[Date "2024.05.14"]
[Round "5"]
[White "temus_galaktionov"]
[Black "xasid81"]
[Result "1-0"]
[WhiteElo "2856"]
[BlackElo "2629"]
[TimeControl "180+1"]
[EndTime "14:54:42 PDT"]
[Termination "temus_galaktionov won by checkmate"]

1. d4 {[%clk 0:02:58.9]} 1... d5 {[%clk 0:02:54.7]} 2. c4 {[%clk 0:02:53.7]}
2... c6 {[%clk 0:02:54.4]} 3. Nf3 {[%clk 0:02:52.1]} 3... Nf6 {[%clk 0:02:55]}
4. Qb3 {[%clk 0:02:50.1]} 4... e6 {[%clk 0:02:50.9]} 5. Nc3 {[%clk 0:02:47]}
5... Nbd7 {[%clk 0:02:45]} 6. Bg5 {[%clk 0:02:46.3]} 6... Be7 {[%clk 0:02:44.5]}
7. e3 {[%clk 0:02:46.5]} 7... h6 {[%clk 0:02:44]} 8. Bh4 {[%clk 0:02:46.7]} 8...
O-O {[%clk 0:02:43.9]} 9. Bd3 {[%clk 0:02:46.5]} 9... b6 {[%clk 0:02:42.7]} 10.
O-O {[%clk 0:02:46.6]} 10... Bb7 {[%clk 0:02:34.4]} 11. Rfd1 {[%clk 0:02:45]}
11... c5 {[%clk 0:02:28.7]} 12. cxd5 {[%clk 0:02:45.1]} 12... Nxd5 {[%clk
0:02:26.7]} 13. Bxe7 {[%clk 0:02:44.5]} 13... Qxe7 {[%clk 0:02:23.7]} 14. Ne4
{[%clk 0:02:29.4]} 14... N5f6 {[%clk 0:02:03.4]} 15. Nxf6+ {[%clk 0:02:26.3]}
15... Nxf6 {[%clk 0:02:04.3]} 16. Be2 {[%clk 0:02:25.4]} 16... Rfd8 {[%clk
0:01:55]} 17. Rac1 {[%clk 0:02:22.1]} 17... Rac8 {[%clk 0:01:32]} 18. Qa3 {[%clk
0:02:21.6]} 18... Bxf3 {[%clk 0:01:01.8]} 19. Bxf3 {[%clk 0:02:22.5]} 19... Kf8
{[%clk 0:00:46.4]} 20. dxc5 {[%clk 0:02:21.7]} 20... Rxd1+ {[%clk 0:00:43.8]}
21. Bxd1 {[%clk 0:02:22.6]} 21... Rxc5 {[%clk 0:00:42.6]} 22. Rxc5 {[%clk
0:02:22.1]} 22... bxc5 {[%clk 0:00:41.3]} 23. Bf3 {[%clk 0:02:16.4]} 23... g5
{[%clk 0:00:36.7]} 24. h3 {[%clk 0:02:16.3]} 24... Kg7 {[%clk 0:00:36.4]} 25. g4
{[%clk 0:02:11.7]} 25... e5 {[%clk 0:00:36.2]} 26. Kg2 {[%clk 0:02:08.8]} 26...
Qc7 {[%clk 0:00:30]} 27. Qc3 {[%clk 0:02:08.7]} 27... Qe7 {[%clk 0:00:25.4]} 28.
Qc4 {[%clk 0:02:07.7]} 28... Qc7 {[%clk 0:00:24.6]} 29. b4 {[%clk 0:02:04.2]}
29... e4 {[%clk 0:00:18.2]} 30. Be2 {[%clk 0:01:56.8]} 30... Nd7 {[%clk
0:00:18.3]} 31. Qxe4 {[%clk 0:01:56.7]} 31... cxb4 {[%clk 0:00:18.4]} 32. Qxb4
{[%clk 0:01:57.6]} 32... Nc5 {[%clk 0:00:18.1]} 33. Qc3+ {[%clk 0:01:54]} 33...
f6 {[%clk 0:00:17.6]} 34. Bf3 {[%clk 0:01:54.4]} 34... Qe7 {[%clk 0:00:17.1]}
35. Qb4 {[%clk 0:01:52.1]} 35... Qc7 {[%clk 0:00:16.5]} 36. Qc4 {[%clk
0:01:51.5]} 36... Qe7 {[%clk 0:00:16.2]} 37. a4 {[%clk 0:01:50.9]} 37... Qc7
{[%clk 0:00:15.7]} 38. Qb5 {[%clk 0:01:49.7]} 38... Qe7 {[%clk 0:00:15.3]} 39.
a5 {[%clk 0:01:49.9]} 39... Qc7 {[%clk 0:00:15.1]} 40. Bd5 {[%clk 0:01:44.4]}
40... Qe7 {[%clk 0:00:13.7]} 41. Qc6 {[%clk 0:01:40.6]} 41... Nd3 {[%clk
0:00:11.3]} 42. Qc8 {[%clk 0:01:36.4]} 42... Ne1+ {[%clk 0:00:07.2]} 43. Kf1
{[%clk 0:01:36.4]} 43... Nd3 {[%clk 0:00:07.9]} 44. Qg8# {[%clk 0:01:35.9]} 1-0